{"text_format":"3","workbook":"xlsx","n_sheets":2,"sheets":["INÍCIO","ORÇAMENTO PESSOAL"],"not_rendered":{"defined_names":2},"read":"whole","date_system":"1900"}

{"sheet":"INÍCIO","index":0,"n_rows":7,"n_cols":2,"rows_kept":7}
[null,"Sobre o modelo"]
[null,"Use este modelo para manter o orçamento mensal e anual."]
[null,"Insira Receitas e Despesas nas respectivas tabelas para calcular sobra e falta no orçamento de cada mês e ano."]
[null,"Os minigráficos são atualizados automaticamente em cada tabela."]
[null,"Observação: "]
[null,"Instruções adicionais são fornecidas na coluna A da planilha ORÇAMENTO PESSOAL. Este texto está oculto de propósito. Para removê-lo, selecione a coluna A e selecione Excluir. Para reexibir o texto, selecione a coluna A e altere a cor da fonte."]
[null,"Para saber mais sobre tabelas, pressione SHIFT e F10 dentro de uma tabela, selecione a opção TABELA e, em seguida, selecione TEXTO ALTERNATIVO."]

{"sheet":"ORÇAMENTO PESSOAL","index":1,"n_rows":107,"n_cols":17,"rows_kept":107,"merged":[[1,1,1,3],[1,4,1,15],[27,2,27,16],[36,2,36,16],[43,2,43,16],[53,2,53,16],[62,2,62,16],[69,2,69,16],[79,2,79,16],[87,2,87,16],[95,2,95,16],[103,2,103,16]]}
["Crie um orçamento pessoal simples nesta planilha. Instruções úteis sobre como usar esta planilha estão nas células desta coluna. Pressione Seta para baixo para começar."]
["O título desta planilha está na célula à direita. Insira o ano na célula Q2. A próxima instrução está na célula A4.","ORÇAMENTO PESSOAL",{"$nulls":14},{"$f":"YEAR(TODAY())","v":2019}]
[]
["Os rótulos estão nas células C4 a P4.",null,"RECEITA","JAN","FEV","MAR","ABR","MAIO","JUN","JUL","AGO","SET","OUT","NOV","DEZ","ANO"]
["Insira os detalhes na tabela receita, começando na célula C5. A próxima instrução está na célula A11.",null,"RECEITA","Janeiro","Fevereiro","Março","Abr","Maio","Jun","Julho","Agosto","Setembro","Outubro","Novembro","Dezembro","Ano","Minigráfico"]
[null,null,"Salários",{"v":2600,"d":"R$ 2,600.00"},{"v":2600,"d":"R$ 2,600.00"},{"v":2600,"d":"R$ 2,600.00"},{"$nulls":9},{"$f":"SUM(Receita[[#This Row],[Janeiro]:[Dezembro]])","v":{"v":7800,"d":"R$ 7,800.00"}}]
[null,null,"Juros/dividendos",{"v":649,"d":"R$ 649.00"},{"v":313,"d":"R$ 313.00"},{"v":664,"d":"R$ 664.00"},{"$nulls":9},{"$f":"SUM(Receita[[#This Row],[Janeiro]:[Dezembro]])","v":{"v":1626,"d":"R$ 1,626.00"}}]
[null,null,"Diversos",{"v":474,"d":"R$ 474.00"},{"v":643,"d":"R$ 643.00"},{"v":380,"d":"R$ 380.00"},{"$nulls":9},{"$f":"SUM(Receita[[#This Row],[Janeiro]:[Dezembro]])","v":{"v":1497,"d":"R$ 1,497.00"}}]
[null,null,"Total",{"$f":"SUBTOTAL(109,Receita[Janeiro])","v":{"v":3723,"d":"R$ 3,723.00"}},{"$f":"SUBTOTAL(109,Receita[Fevereiro])","v":{"v":3556,"d":"R$ 3,556.00"}},{"$f":"SUBTOTAL(109,Receita[Março])","v":{"v":3644,"d":"R$ 3,644.00"}},{"$f":"SUBTOTAL(109,Receita[Abr])","v":{"v":0,"d":"R$ 0.00"}},{"$f":"SUBTOTAL(109,Receita[Maio])","v":{"v":0,"d":"R$ 0.00"}},{"$f":"SUBTOTAL(109,Receita[Jun])","v":{"v":0,"d":"R$ 0.00"}},{"$f":"SUBTOTAL(109,Receita[Julho])","v":{"v":0,"d":"R$ 0.00"}},{"$f":"SUBTOTAL(109,Receita[Agosto])","v":{"v":0,"d":"R$ 0.00"}},{"$f":"SUBTOTAL(109,Receita[Setembro])","v":{"v":0,"d":"R$ 0.00"}},{"$f":"SUBTOTAL(109,Receita[Outubro])","v":{"v":0,"d":"R$ 0.00"}},{"$f":"SUBTOTAL(109,Receita[Novembro])","v":{"v":0,"d":"R$ 0.00"}},{"$f":"SUBTOTAL(109,Receita[Dezembro])","v":{"v":0,"d":"R$ 0.00"}},{"$f":"SUBTOTAL(109,Receita[Ano])","v":{"v":10923,"d":"R$ 10,923.00"}}]
[]
["Os rótulos estão nas células C11 a P11.",null,"DESPESAS","JAN","FEV","MAR","ABR","MAIO","JUN","JUL","AGO","SET","OUT","NOV","DEZ","ANO"]
["Insira as despesas domésticas na tabela, começando na célula C12. A próxima instrução está na célula A20.",null,"DOMÉSTICAS","Janeiro","Fevereiro","Março","Abr","Mai","Jun","Julho","Agosto","Setembro","Outubro","Novembro","Dezembro","Ano","Minigráfico"]
[null,null,"Hipoteca",{"v":750,"d":"R$ 750.00"},{"v":750,"d":"R$ 750.00"},{"v":750,"d":"R$ 750.00"},{"$nulls":9},{"$f":"SUM(Domésticas[[#This Row],[Janeiro]:[Dezembro]])","v":{"v":2250,"d":"R$ 2,250.00"}}]
[null,null,"Viagem",{"$nulls":12},{"$f":"SUM(Domésticas[[#This Row],[Janeiro]:[Dezembro]])","v":{"v":0,"d":"R$ 0.00"}}]
[null,null,"Reparos",null,null,{"v":75,"d":"R$ 75.00"},{"$nulls":9},{"$f":"SUM(Domésticas[[#This Row],[Janeiro]:[Dezembro]])","v":{"v":75,"d":"R$ 75.00"}}]
[null,null,"Serviços",{"v":35,"d":"R$ 35.00"},{"v":35,"d":"R$ 35.00"},{"v":35,"d":"R$ 35.00"},{"$nulls":9},{"$f":"SUM(Domésticas[[#This Row],[Janeiro]:[Dezembro]])","v":{"v":105,"d":"R$ 105.00"}}]
[null,null,"Serviços Públicos",{"v":165,"d":"R$ 165.00"},{"v":165,"d":"R$ 165.00"},{"v":165,"d":"R$ 165.00"},{"$nulls":9},{"$f":"SUM(Domésticas[[#This Row],[Janeiro]:[Dezembro]])","v":{"v":495,"d":"R$ 495.00"}}]
[null,null,"Total",{"$f":"SUBTOTAL(109,Domésticas[Janeiro])","v":{"v":950,"d":"R$ 950.00"}},{"$f":"SUBTOTAL(109,Domésticas[Fevereiro])","v":{"v":950,"d":"R$ 950.00"}},{"$f":"SUBTOTAL(109,Domésticas[Março])","v":{"v":1025,"d":"R$ 1,025.00"}},{"$f":"SUBTOTAL(109,Domésticas[Abr])","v":{"v":0,"d":"R$ 0.00"}},{"$f":"SUBTOTAL(109,Domésticas[Mai])","v":{"v":0,"d":"R$ 0.00"}},{"$f":"SUBTOTAL(109,Domésticas[Jun])","v":{"v":0,"d":"R$ 0.00"}},{"$f":"SUBTOTAL(109,Domésticas[Julho])","v":{"v":0,"d":"R$ 0.00"}},{"$f":"SUBTOTAL(109,Domésticas[Agosto])","v":{"v":0,"d":"R$ 0.00"}},{"$f":"SUBTOTAL(109,Domésticas[Setembro])","v":{"v":0,"d":"R$ 0.00"}},{"$f":"SUBTOTAL(109,Domésticas[Outubro])","v":{"v":0,"d":"R$ 0.00"}},{"$f":"SUBTOTAL(109,Domésticas[Novembro])","v":{"v":0,"d":"R$ 0.00"}},{"$f":"SUBTOTAL(109,Domésticas[Dezembro])","v":{"v":0,"d":"R$ 0.00"}},{"$f":"SUBTOTAL(109,Domésticas[Ano])","v":{"v":2925,"d":"R$ 2,925.00"}}]
[]
["Insira as despesas diárias na tabela, começando na célula C20. A próxima instrução está na célula A29.",null,"Cotidiano","Janeiro","Fevereiro","Março","Abr","Mai","Jun","Julho","Agosto","Setembro","Outubro","Novembro","Dezembro","Ano","Minigráfico"]
[null,null,"Supermercado ",{"v":191,"d":"R$ 191.00"},{"v":152,"d":"R$ 152.00"},{"v":145,"d":"R$ 145.00"},{"$nulls":9},{"$f":"SUM(Diárias[[#This Row],[Janeiro]:[Dezembro]])","v":{"v":488,"d":"R$ 488.00"}}]
[null,null,"Creche",{"v":200,"d":"R$ 200.00"},{"v":200,"d":"R$ 200.00"},{"v":200,"d":"R$ 200.00"},{"$nulls":9},{"$f":"SUM(Diárias[[#This Row],[Janeiro]:[Dezembro]])","v":{"v":600,"d":"R$ 600.00"}}]
[null,null,"Lavagem a seco",{"v":20,"d":"R$ 20.00"},null,{"v":20,"d":"R$ 20.00"},{"$nulls":9},{"$f":"SUM(Diárias[[#This Row],[Janeiro]:[Dezembro]])","v":{"v":40,"d":"R$ 40.00"}}]
[null,null,"Jantar fora",{"v":55,"d":"R$ 55.00"},null,{"v":56,"d":"R$ 56.00"},{"$nulls":9},{"$f":"SUM(Diárias[[#This Row],[Janeiro]:[Dezembro]])","v":{"v":111,"d":"R$ 111.00"}}]
[null,null,"Serviço de limpeza doméstica",{"v":25,"d":"R$ 25.00"},{"v":17,"d":"R$ 17.00"},{"v":7,"d":"R$ 7.00"},{"$nulls":9},{"$f":"SUM(Diárias[[#This Row],[Janeiro]:[Dezembro]])","v":{"v":49,"d":"R$ 49.00"}}]
[null,null,"Passeador de cães",{"v":10,"d":"R$ 10.00"},{"v":5,"d":"R$ 5.00"},{"v":7,"d":"R$ 7.00"},{"$nulls":9},{"$f":"SUM(Diárias[[#This Row],[Janeiro]:[Dezembro]])","v":{"v":22,"d":"R$ 22.00"}}]
[null,null,"Total",{"$f":"SUBTOTAL(109,Diárias[Janeiro])","v":{"v":501,"d":"R$ 501.00"}},{"$f":"SUBTOTAL(109,Diárias[Fevereiro])","v":{"v":374,"d":"R$ 374.00"}},{"$f":"SUBTOTAL(109,Diárias[Março])","v":{"v":435,"d":"R$ 435.00"}},{"$f":"SUBTOTAL(109,Diárias[Abr])","v":{"v":0,"d":"R$ 0.00"}},{"$f":"SUBTOTAL(109,Diárias[Mai])","v":{"v":0,"d":"R$ 0.00"}},{"$f":"SUBTOTAL(109,Diárias[Jun])","v":{"v":0,"d":"R$ 0.00"}},{"$f":"SUBTOTAL(109,Diárias[Julho])","v":{"v":0,"d":"R$ 0.00"}},{"$f":"SUBTOTAL(109,Diárias[Agosto])","v":{"v":0,"d":"R$ 0.00"}},{"$f":"SUBTOTAL(109,Diárias[Setembro])","v":{"v":0,"d":"R$ 0.00"}},{"$f":"SUBTOTAL(109,Diárias[Outubro])","v":{"v":0,"d":"R$ 0.00"}},{"$f":"SUBTOTAL(109,Diárias[Novembro])","v":{"v":0,"d":"R$ 0.00"}},{"$f":"SUBTOTAL(109,Diárias[Dezembro])","v":{"v":0,"d":"R$ 0.00"}},{"$f":"SUBTOTAL(109,Diárias[Ano])","v":{"v":1310,"d":"R$ 1,310.00"}}]
[]
["Insira as despesas de transporte na tabela, começando na célula C29. A próxima instrução está na célula A38.",null,"TRANSPORTE","Janeiro","Fevereiro","Março","Abr","Mai","Jun","Julho","Agosto","Setembro","Outubro","Novembro","Dezembro","Ano","Minigráfico"]
[null,null,"Combustível",{"v":195,"d":"R$ 195.00"},{"v":125,"d":"R$ 125.00"},{"v":171,"d":"R$ 171.00"},{"$nulls":9},{"$f":"SUM(Transporte[[#This Row],[Janeiro]:[Dezembro]])","v":{"v":491,"d":"R$ 491.00"}}]
[null,null,"Seguro",{"v":165,"d":"R$ 165.00"},{"v":165,"d":"R$ 165.00"},{"v":165,"d":"R$ 165.00"},{"$nulls":9},{"$f":"SUM(Transporte[[#This Row],[Janeiro]:[Dezembro]])","v":{"v":495,"d":"R$ 495.00"}}]
[null,null,"Reparos",{"$nulls":12},{"$f":"SUM(Transporte[[#This Row],[Janeiro]:[Dezembro]])","v":{"v":0,"d":"R$ 0.00"}}]
[null,null,"Lavagem do carro",{"v":10,"d":"R$ 10.00"},{"$nulls":11},{"$f":"SUM(Transporte[[#This Row],[Janeiro]:[Dezembro]])","v":{"v":10,"d":"R$ 10.00"}}]
[null,null,"Estacionamento",{"v":10,"d":"R$ 10.00"},{"v":40,"d":"R$ 40.00"},{"v":20,"d":"R$ 20.00"},{"$nulls":9},{"$f":"SUM(Transporte[[#This Row],[Janeiro]:[Dezembro]])","v":{"v":70,"d":"R$ 70.00"}}]
[null,null,"Transporte público",{"v":20,"d":"R$ 20.00"},{"v":40,"d":"R$ 40.00"},{"v":30,"d":"R$ 30.00"},{"$nulls":9},{"$f":"SUM(Transporte[[#This Row],[Janeiro]:[Dezembro]])","v":{"v":90,"d":"R$ 90.00"}}]
[null,null,"Total",{"$f":"SUBTOTAL(109,Transporte[Janeiro])","v":{"v":400,"d":"R$ 400.00"}},{"$f":"SUBTOTAL(109,Transporte[Fevereiro])","v":{"v":370,"d":"R$ 370.00"}},{"$f":"SUBTOTAL(109,Transporte[Março])","v":{"v":386,"d":"R$ 386.00"}},{"$f":"SUBTOTAL(109,Transporte[Abr])","v":{"v":0,"d":"R$ 0.00"}},{"$f":"SUBTOTAL(109,Transporte[Mai])","v":{"v":0,"d":"R$ 0.00"}},{"$f":"SUBTOTAL(109,Transporte[Jun])","v":{"v":0,"d":"R$ 0.00"}},{"$f":"SUBTOTAL(109,Transporte[Julho])","v":{"v":0,"d":"R$ 0.00"}},{"$f":"SUBTOTAL(109,Transporte[Agosto])","v":{"v":0,"d":"R$ 0.00"}},{"$f":"SUBTOTAL(109,Transporte[Setembro])","v":{"v":0,"d":"R$ 0.00"}},{"$f":"SUBTOTAL(109,Transporte[Outubro])","v":{"v":0,"d":"R$ 0.00"}},{"$f":"SUBTOTAL(109,Transporte[Novembro])","v":{"v":0,"d":"R$ 0.00"}},{"$f":"SUBTOTAL(109,Transporte[Dezembro])","v":{"v":0,"d":"R$ 0.00"}},{"$f":"SUBTOTAL(109,Transporte[Ano])","v":{"v":1156,"d":"R$ 1,156.00"}}]
[]
["Insira as despesas de entretenimento na tabela, começando na célula C38. A próxima instrução está na célula A45.",null,"ENTRETENIMENTO","Janeiro","Fevereiro","Março","Abr","Mai","Jun","Julho","Agosto","Setembro","Outubro","Novembro","Dezembro","Ano","Minigráfico"]
[null,null,"TV a cabo",{"v":85,"d":"R$ 85.00"},{"v":85,"d":"R$ 85.00"},{"v":85,"d":"R$ 85.00"},{"$nulls":9},{"$f":"SUM(Entretenimento[[#This Row],[Janeiro]:[Dezembro]])","v":{"v":255,"d":"R$ 255.00"}}]
[null,null,"Locações de vídeo/DVD",{"v":7,"d":"R$ 7.00"},{"v":8,"d":"R$ 8.00"},{"v":9,"d":"R$ 9.00"},{"$nulls":9},{"$f":"SUM(Entretenimento[[#This Row],[Janeiro]:[Dezembro]])","v":{"v":24,"d":"R$ 24.00"}}]
[null,null,"Cinema/teatro",{"v":9,"d":"R$ 9.00"},{"v":5,"d":"R$ 5.00"},{"v":9,"d":"R$ 9.00"},{"$nulls":9},{"$f":"SUM(Entretenimento[[#This Row],[Janeiro]:[Dezembro]])","v":{"v":23,"d":"R$ 23.00"}}]
[null,null,"Shows/clubes",{"v":5,"d":"R$ 5.00"},{"v":5,"d":"R$ 5.00"},{"v":7,"d":"R$ 7.00"},{"$nulls":9},{"$f":"SUM(Entretenimento[[#This Row],[Janeiro]:[Dezembro]])","v":{"v":17,"d":"R$ 17.00"}}]
[null,null,"Total",{"$f":"SUBTOTAL(109,Entretenimento[Janeiro])","v":{"v":106,"d":"R$ 106.00"}},{"$f":"SUBTOTAL(109,Entretenimento[Fevereiro])","v":{"v":103,"d":"R$ 103.00"}},{"$f":"SUBTOTAL(109,Entretenimento[Março])","v":{"v":110,"d":"R$ 110.00"}},{"$f":"SUBTOTAL(109,Entretenimento[Abr])","v":{"v":0,"d":"R$ 0.00"}},{"$f":"SUBTOTAL(109,Entretenimento[Mai])","v":{"v":0,"d":"R$ 0.00"}},{"$f":"SUBTOTAL(109,Entretenimento[Jun])","v":{"v":0,"d":"R$ 0.00"}},{"$f":"SUBTOTAL(109,Entretenimento[Julho])","v":{"v":0,"d":"R$ 0.00"}},{"$f":"SUBTOTAL(109,Entretenimento[Agosto])","v":{"v":0,"d":"R$ 0.00"}},{"$f":"SUBTOTAL(109,Entretenimento[Setembro])","v":{"v":0,"d":"R$ 0.00"}},{"$f":"SUBTOTAL(109,Entretenimento[Outubro])","v":{"v":0,"d":"R$ 0.00"}},{"$f":"SUBTOTAL(109,Entretenimento[Novembro])","v":{"v":0,"d":"R$ 0.00"}},{"$f":"SUBTOTAL(109,Entretenimento[Dezembro])","v":{"v":0,"d":"R$ 0.00"}},{"$f":"SUBTOTAL(109,Entretenimento[Ano])","v":{"v":319,"d":"R$ 319.00"}}]
[]
["Insira as despesas de saúde na tabela, começando na célula C45. A próxima instrução está na célula A55.",null,"SAÚDE","Janeiro","Fevereiro","Março","Abr","Mai","Jun","Julho","Agosto","Setembro","Outubro","Novembro","Dezembro","Ano","Minigráfico"]
[null,null,"Mensalidade da academia",{"v":50,"d":"R$ 50.00"},{"v":50,"d":"R$ 50.00"},{"v":50,"d":"R$ 50.00"},{"$nulls":9},{"$f":"SUM(Saúde[[#This Row],[Janeiro]:[Dezembro]])","v":{"v":150,"d":"R$ 150.00"}}]
[null,null,"Seguro",{"v":225,"d":"R$ 225.00"},{"v":225,"d":"R$ 225.00"},{"v":225,"d":"R$ 225.00"},{"$nulls":9},{"$f":"SUM(Saúde[[#This Row],[Janeiro]:[Dezembro]])","v":{"v":675,"d":"R$ 675.00"}}]
[null,null,"Medicamentos com prescrição",{"v":100,"d":"R$ 100.00"},{"v":100,"d":"R$ 100.00"},{"v":100,"d":"R$ 100.00"},{"$nulls":9},{"$f":"SUM(Saúde[[#This Row],[Janeiro]:[Dezembro]])","v":{"v":300,"d":"R$ 300.00"}}]
[null,null,"Medicamentos sem prescrição",{"v":6,"d":"R$ 6.00"},{"v":2,"d":"R$ 2.00"},{"v":9,"d":"R$ 9.00"},{"$nulls":9},{"$f":"SUM(Saúde[[#This Row],[Janeiro]:[Dezembro]])","v":{"v":17,"d":"R$ 17.00"}}]
[null,null,"Coparticipação/particular",{"v":20,"d":"R$ 20.00"},null,{"v":41,"d":"R$ 41.00"},{"$nulls":9},{"$f":"SUM(Saúde[[#This Row],[Janeiro]:[Dezembro]])","v":{"v":61,"d":"R$ 61.00"}}]
[null,null,"Veterinário/medicamentos para animais de estimação",{"v":4,"d":"R$ 4.00"},null,{"v":25,"d":"R$ 25.00"},{"$nulls":9},{"$f":"SUM(Saúde[[#This Row],[Janeiro]:[Dezembro]])","v":{"v":29,"d":"R$ 29.00"}}]
[null,null,"Seguro de vida",{"v":55,"d":"R$ 55.00"},{"v":55,"d":"R$ 55.00"},{"v":55,"d":"R$ 55.00"},{"$nulls":9},{"$f":"SUM(Saúde[[#This Row],[Janeiro]:[Dezembro]])","v":{"v":165,"d":"R$ 165.00"}}]
[null,null,"Total",{"$f":"SUBTOTAL(109,Saúde[Janeiro])","v":{"v":460,"d":"R$ 460.00"}},{"$f":"SUBTOTAL(109,Saúde[Fevereiro])","v":{"v":432,"d":"R$ 432.00"}},{"$f":"SUBTOTAL(109,Saúde[Março])","v":{"v":505,"d":"R$ 505.00"}},{"$f":"SUBTOTAL(109,Saúde[Abr])","v":{"v":0,"d":"R$ 0.00"}},{"$f":"SUBTOTAL(109,Saúde[Mai])","v":{"v":0,"d":"R$ 0.00"}},{"$f":"SUBTOTAL(109,Saúde[Jun])","v":{"v":0,"d":"R$ 0.00"}},{"$f":"SUBTOTAL(109,Saúde[Julho])","v":{"v":0,"d":"R$ 0.00"}},{"$f":"SUBTOTAL(109,Saúde[Agosto])","v":{"v":0,"d":"R$ 0.00"}},{"$f":"SUBTOTAL(109,Saúde[Setembro])","v":{"v":0,"d":"R$ 0.00"}},{"$f":"SUBTOTAL(109,Saúde[Outubro])","v":{"v":0,"d":"R$ 0.00"}},{"$f":"SUBTOTAL(109,Saúde[Novembro])","v":{"v":0,"d":"R$ 0.00"}},{"$f":"SUBTOTAL(109,Saúde[Dezembro])","v":{"v":0,"d":"R$ 0.00"}},{"$f":"SUBTOTAL(109,Saúde[Ano])","v":{"v":1397,"d":"R$ 1,397.00"}}]
[]
["Insira as despesas de férias na tabela, começando na célula C55. A próxima instrução está na célula A64.",null,"FÉRIAS","Janeiro","Fevereiro","Março","Abr","Mai","Jun","Julho","Agosto","Setembro","Outubro","Novembro","Dezembro","Ano","Minigráfico"]
[null,null,"Passagens de avião",null,{"v":485,"d":"R$ 485.00"},{"$nulls":10},{"$f":"SUM(Férias[[#This Row],[Janeiro]:[Dezembro]])","v":{"v":485,"d":"R$ 485.00"}}]
[null,null,"Acomodações",null,{"v":245,"d":"R$ 245.00"},{"$nulls":10},{"$f":"SUM(Férias[[#This Row],[Janeiro]:[Dezembro]])","v":{"v":245,"d":"R$ 245.00"}}]
[null,null,"Alimentação",null,{"v":95,"d":"R$ 95.00"},{"$nulls":10},{"$f":"SUM(Férias[[#This Row],[Janeiro]:[Dezembro]])","v":{"v":95,"d":"R$ 95.00"}}]
[null,null,"Souvenirs",{"$nulls":12},{"$f":"SUM(Férias[[#This Row],[Janeiro]:[Dezembro]])","v":{"v":0,"d":"R$ 0.00"}}]
[null,null,"Taxas para transporte de animais de estimação",{"$nulls":12},{"$f":"SUM(Férias[[#This Row],[Janeiro]:[Dezembro]])","v":{"v":0,"d":"R$ 0.00"}}]
[null,null,"Aluguel de carro",null,{"v":85,"d":"R$ 85.00"},{"$nulls":10},{"$f":"SUM(Férias[[#This Row],[Janeiro]:[Dezembro]])","v":{"v":85,"d":"R$ 85.00"}}]
[null,null,"Total",{"$f":"SUBTOTAL(109,Férias[Janeiro])","v":{"v":0,"d":"R$ 0.00"}},{"$f":"SUBTOTAL(109,Férias[Fevereiro])","v":{"v":910,"d":"R$ 910.00"}},{"$f":"SUBTOTAL(109,Férias[Março])","v":{"v":0,"d":"R$ 0.00"}},{"$f":"SUBTOTAL(109,Férias[Abr])","v":{"v":0,"d":"R$ 0.00"}},{"$f":"SUBTOTAL(109,Férias[Mai])","v":{"v":0,"d":"R$ 0.00"}},{"$f":"SUBTOTAL(109,Férias[Jun])","v":{"v":0,"d":"R$ 0.00"}},{"$f":"SUBTOTAL(109,Férias[Julho])","v":{"v":0,"d":"R$ 0.00"}},{"$f":"SUBTOTAL(109,Férias[Agosto])","v":{"v":0,"d":"R$ 0.00"}},{"$f":"SUBTOTAL(109,Férias[Setembro])","v":{"v":0,"d":"R$ 0.00"}},{"$f":"SUBTOTAL(109,Férias[Outubro])","v":{"v":0,"d":"R$ 0.00"}},{"$f":"SUBTOTAL(109,Férias[Novembro])","v":{"v":0,"d":"R$ 0.00"}},{"$f":"SUBTOTAL(109,Férias[Dezembro])","v":{"v":0,"d":"R$ 0.00"}},{"$f":"SUBTOTAL(109,Férias[Ano])","v":{"v":910,"d":"R$ 910.00"}}]
[]
["Insira as despesas de lazer na tabela, começando na célula C64. A próxima instrução está na célula A71.",null,"LAZER","Janeiro","Fevereiro","Março","Abr","Mai","Jun","Julho","Agosto","Setembro","Outubro","Novembro","Dezembro","Ano","Minigráfico"]
[null,null,"Taxas da academia",{"$nulls":12},{"$f":"SUM(Lazer[[#This Row],[Janeiro]:[Dezembro]])","v":{"v":0,"d":"R$ 0.00"}}]
[null,null,"Equipamentos de esportes",{"$nulls":12},{"$f":"SUM(Lazer[[#This Row],[Janeiro]:[Dezembro]])","v":{"v":0,"d":"R$ 0.00"}}]
[null,null,"Mensalidade de sócio da equipe",{"$nulls":12},{"$f":"SUM(Lazer[[#This Row],[Janeiro]:[Dezembro]])","v":{"v":0,"d":"R$ 0.00"}}]
[null,null,"Brinquedos",{"v":39,"d":"R$ 39.00"},{"v":33,"d":"R$ 33.00"},{"v":40,"d":"R$ 40.00"},{"$nulls":9},{"$f":"SUM(Lazer[[#This Row],[Janeiro]:[Dezembro]])","v":{"v":112,"d":"R$ 112.00"}}]
[null,null,"Total",{"$f":"SUBTOTAL(109,Lazer[Janeiro])","v":{"v":39,"d":"R$ 39.00"}},{"$f":"SUBTOTAL(109,Lazer[Fevereiro])","v":{"v":33,"d":"R$ 33.00"}},{"$f":"SUBTOTAL(109,Lazer[Março])","v":{"v":40,"d":"R$ 40.00"}},{"$f":"SUBTOTAL(109,Lazer[Abr])","v":{"v":0,"d":"R$ 0.00"}},{"$f":"SUBTOTAL(109,Lazer[Mai])","v":{"v":0,"d":"R$ 0.00"}},{"$f":"SUBTOTAL(109,Lazer[Jun])","v":{"v":0,"d":"R$ 0.00"}},{"$f":"SUBTOTAL(109,Lazer[Julho])","v":{"v":0,"d":"R$ 0.00"}},{"$f":"SUBTOTAL(109,Lazer[Agosto])","v":{"v":0,"d":"R$ 0.00"}},{"$f":"SUBTOTAL(109,Lazer[Setembro])","v":{"v":0,"d":"R$ 0.00"}},{"$f":"SUBTOTAL(109,Lazer[Outubro])","v":{"v":0,"d":"R$ 0.00"}},{"$f":"SUBTOTAL(109,Lazer[Novembro])","v":{"v":0,"d":"R$ 0.00"}},{"$f":"SUBTOTAL(109,Lazer[Dezembro])","v":{"v":0,"d":"R$ 0.00"}},{"$f":"SUBTOTAL(109,Lazer[Ano])","v":{"v":112,"d":"R$ 112.00"}}]
[]
["Insira as despesas de mensalidades e assinaturas na tabela, começando na célula C71. A próxima instrução está na célula A81.",null,"MENSALIDADES/ASSINATURAS","Janeiro","Fevereiro","Março","Abr","Mai","Jun","Julho","Agosto","Setembro","Outubro","Novembro","Dezembro","Ano","Minigráfico"]
[null,null,"Revistas",{"$nulls":12},{"$f":"SUM(MensalidadesEAssinaturas[[#This Row],[Janeiro]:[Dezembro]])","v":{"v":0,"d":"R$ 0.00"}}]
[null,null,"Jornais",{"$nulls":12},{"$f":"SUM(MensalidadesEAssinaturas[[#This Row],[Janeiro]:[Dezembro]])","v":{"v":0,"d":"R$ 0.00"}}]
[null,null,"Internet",{"$nulls":12},{"$f":"SUM(MensalidadesEAssinaturas[[#This Row],[Janeiro]:[Dezembro]])","v":{"v":0,"d":"R$ 0.00"}}]
[null,null,"Rádio aberta",{"$nulls":12},{"$f":"SUM(MensalidadesEAssinaturas[[#This Row],[Janeiro]:[Dezembro]])","v":{"v":0,"d":"R$ 0.00"}}]
[null,null,"TV aberta",{"$nulls":12},{"$f":"SUM(MensalidadesEAssinaturas[[#This Row],[Janeiro]:[Dezembro]])","v":{"v":0,"d":"R$ 0.00"}}]
[null,null,"Organizações religiosas",{"v":29,"d":"R$ 29.00"},{"v":18,"d":"R$ 18.00"},{"v":17,"d":"R$ 17.00"},{"$nulls":9},{"$f":"SUM(MensalidadesEAssinaturas[[#This Row],[Janeiro]:[Dezembro]])","v":{"v":64,"d":"R$ 64.00"}}]
[null,null,"Donativo",{"$nulls":12},{"$f":"SUM(MensalidadesEAssinaturas[[#This Row],[Janeiro]:[Dezembro]])","v":{"v":0,"d":"R$ 0.00"}}]
[null,null,"Total",{"$f":"SUBTOTAL(109,MensalidadesEAssinaturas[Janeiro])","v":{"v":29,"d":"R$ 29.00"}},{"$f":"SUBTOTAL(109,MensalidadesEAssinaturas[Fevereiro])","v":{"v":18,"d":"R$ 18.00"}},{"$f":"SUBTOTAL(109,MensalidadesEAssinaturas[Março])","v":{"v":17,"d":"R$ 17.00"}},{"$f":"SUBTOTAL(109,MensalidadesEAssinaturas[Abr])","v":{"v":0,"d":"R$ 0.00"}},{"$f":"SUBTOTAL(109,MensalidadesEAssinaturas[Mai])","v":{"v":0,"d":"R$ 0.00"}},{"$f":"SUBTOTAL(109,MensalidadesEAssinaturas[Jun])","v":{"v":0,"d":"R$ 0.00"}},{"$f":"SUBTOTAL(109,MensalidadesEAssinaturas[Julho])","v":{"v":0,"d":"R$ 0.00"}},{"$f":"SUBTOTAL(109,MensalidadesEAssinaturas[Agosto])","v":{"v":0,"d":"R$ 0.00"}},{"$f":"SUBTOTAL(109,MensalidadesEAssinaturas[Setembro])","v":{"v":0,"d":"R$ 0.00"}},{"$f":"SUBTOTAL(109,MensalidadesEAssinaturas[Outubro])","v":{"v":0,"d":"R$ 0.00"}},{"$f":"SUBTOTAL(109,MensalidadesEAssinaturas[Novembro])","v":{"v":0,"d":"R$ 0.00"}},{"$f":"SUBTOTAL(109,MensalidadesEAssinaturas[Dezembro])","v":{"v":0,"d":"R$ 0.00"}},{"$f":"SUBTOTAL(109,MensalidadesEAssinaturas[Ano])","v":{"v":64,"d":"R$ 64.00"}}]
[]
["Insira as despesas pessoais na tabela, começando na célula C81. A próxima instrução está na célula A89.",null,"PESSOAIS","Janeiro","Fevereiro","Março","Abr","Mai","Jun","Julho","Agosto","Setembro","Outubro","Novembro","Dezembro","Ano","Minigráfico"]
[null,null,"Vestuário",null,null,{"v":29,"d":"R$ 29.00"},{"$nulls":9},{"$f":"SUM(Pessoais[[#This Row],[Janeiro]:[Dezembro]])","v":{"v":29,"d":"R$ 29.00"}}]
[null,null,"Presentes",null,{"v":35,"d":"R$ 35.00"},{"$nulls":10},{"$f":"SUM(Pessoais[[#This Row],[Janeiro]:[Dezembro]])","v":{"v":35,"d":"R$ 35.00"}}]
[null,null,"Salão/barbeiro",{"v":25,"d":"R$ 25.00"},{"v":25,"d":"R$ 25.00"},{"v":25,"d":"R$ 25.00"},{"$nulls":9},{"$f":"SUM(Pessoais[[#This Row],[Janeiro]:[Dezembro]])","v":{"v":75,"d":"R$ 75.00"}}]
[null,null,"Livros",{"$nulls":12},{"$f":"SUM(Pessoais[[#This Row],[Janeiro]:[Dezembro]])","v":{"v":0,"d":"R$ 0.00"}}]
[null,null,"Música (CDs, etc.)",{"$nulls":12},{"$f":"SUM(Pessoais[[#This Row],[Janeiro]:[Dezembro]])","v":{"v":0,"d":"R$ 0.00"}}]
[null,null,"Total",{"$f":"SUBTOTAL(109,Pessoais[Janeiro])","v":{"v":25,"d":"R$ 25.00"}},{"$f":"SUBTOTAL(109,Pessoais[Fevereiro])","v":{"v":60,"d":"R$ 60.00"}},{"$f":"SUBTOTAL(109,Pessoais[Março])","v":{"v":54,"d":"R$ 54.00"}},{"$f":"SUBTOTAL(109,Pessoais[Abr])","v":{"v":0,"d":"R$ 0.00"}},{"$f":"SUBTOTAL(109,Pessoais[Mai])","v":{"v":0,"d":"R$ 0.00"}},{"$f":"SUBTOTAL(109,Pessoais[Jun])","v":{"v":0,"d":"R$ 0.00"}},{"$f":"SUBTOTAL(109,Pessoais[Julho])","v":{"v":0,"d":"R$ 0.00"}},{"$f":"SUBTOTAL(109,Pessoais[Agosto])","v":{"v":0,"d":"R$ 0.00"}},{"$f":"SUBTOTAL(109,Pessoais[Setembro])","v":{"v":0,"d":"R$ 0.00"}},{"$f":"SUBTOTAL(109,Pessoais[Outubro])","v":{"v":0,"d":"R$ 0.00"}},{"$f":"SUBTOTAL(109,Pessoais[Novembro])","v":{"v":0,"d":"R$ 0.00"}},{"$f":"SUBTOTAL(109,Pessoais[Dezembro])","v":{"v":0,"d":"R$ 0.00"}},{"$f":"SUBTOTAL(109,Pessoais[Ano])","v":{"v":139,"d":"R$ 139.00"}}]
[]
["Insira as obrigações financeiras na tabela, começando na célula C89. A próxima instrução está na célula A97.",null,"OBRIGAÇÕES FINANCEIRAS","Janeiro","Fevereiro","Março","Abr","Mai","Jun","Julho","Agosto","Setembro","Outubro","Novembro","Dezembro","Ano","Minigráfico"]
[null,null,"Economias de longo prazo",{"v":25,"d":"R$ 25.00"},{"v":25,"d":"R$ 25.00"},{"v":25,"d":"R$ 25.00"},{"$nulls":9},{"$f":"SUM(Financeiro[[#This Row],[Janeiro]:[Dezembro]])","v":{"v":75,"d":"R$ 75.00"}}]
[null,null,"Aposentadoria",{"v":45,"d":"R$ 45.00"},{"v":45,"d":"R$ 45.00"},{"v":45,"d":"R$ 45.00"},{"$nulls":9},{"$f":"SUM(Financeiro[[#This Row],[Janeiro]:[Dezembro]])","v":{"v":135,"d":"R$ 135.00"}}]
[null,null,"Pagamentos do cartão de crédito",{"v":75,"d":"R$ 75.00"},{"v":75,"d":"R$ 75.00"},{"v":75,"d":"R$ 75.00"},{"$nulls":9},{"$f":"SUM(Financeiro[[#This Row],[Janeiro]:[Dezembro]])","v":{"v":225,"d":"R$ 225.00"}}]
[null,null,"Imposto de renda (adicional)",{"$nulls":12},{"$f":"SUM(Financeiro[[#This Row],[Janeiro]:[Dezembro]])","v":{"v":0,"d":"R$ 0.00"}}]
[null,null,"Outras obrigações",{"v":32,"d":"R$ 32.00"},{"v":34,"d":"R$ 34.00"},{"v":1,"d":"R$ 1.00"},{"$nulls":9},{"$f":"SUM(Financeiro[[#This Row],[Janeiro]:[Dezembro]])","v":{"v":67,"d":"R$ 67.00"}}]
[null,null,"Total",{"$f":"SUBTOTAL(109,Financeiro[Janeiro])","v":{"v":177,"d":"R$ 177.00"}},{"$f":"SUBTOTAL(109,Financeiro[Fevereiro])","v":{"v":179,"d":"R$ 179.00"}},{"$f":"SUBTOTAL(109,Financeiro[Março])","v":{"v":146,"d":"R$ 146.00"}},{"$f":"SUBTOTAL(109,Financeiro[Abr])","v":{"v":0,"d":"R$ 0.00"}},{"$f":"SUBTOTAL(109,Financeiro[Mai])","v":{"v":0,"d":"R$ 0.00"}},{"$f":"SUBTOTAL(109,Financeiro[Jun])","v":{"v":0,"d":"R$ 0.00"}},{"$f":"SUBTOTAL(109,Financeiro[Julho])","v":{"v":0,"d":"R$ 0.00"}},{"$f":"SUBTOTAL(109,Financeiro[Agosto])","v":{"v":0,"d":"R$ 0.00"}},{"$f":"SUBTOTAL(109,Financeiro[Setembro])","v":{"v":0,"d":"R$ 0.00"}},{"$f":"SUBTOTAL(109,Financeiro[Outubro])","v":{"v":0,"d":"R$ 0.00"}},{"$f":"SUBTOTAL(109,Financeiro[Novembro])","v":{"v":0,"d":"R$ 0.00"}},{"$f":"SUBTOTAL(109,Financeiro[Dezembro])","v":{"v":0,"d":"R$ 0.00"}},{"$f":"SUBTOTAL(109,Financeiro[Ano])","v":{"v":502,"d":"R$ 502.00"}}]
[]
["Insira os pagamentos diversos na tabela, começando na célula C97. A próxima instrução está na célula A105.",null,"PAGAMENTOS DIVERSOS","Janeiro","Fevereiro","Março","Abr","Maio","Jun","Julho","Agosto","Setembro","Outubro","Novembro","Dezembro","Ano","Minigráfico"]
[null,null,"Outros",{"$nulls":12},{"$f":"SUM(Diversos[[#This Row],[Janeiro]:[Dezembro]])","v":{"v":0,"d":"R$ 0.00"}}]
[null,null,"Outros",{"$nulls":12},{"$f":"SUM(Diversos[[#This Row],[Janeiro]:[Dezembro]])","v":{"v":0,"d":"R$ 0.00"}}]
[null,null,"Outros",{"$nulls":12},{"$f":"SUM(Diversos[[#This Row],[Janeiro]:[Dezembro]])","v":{"v":0,"d":"R$ 0.00"}}]
[null,null,"Outros",{"$nulls":12},{"$f":"SUM(Diversos[[#This Row],[Janeiro]:[Dezembro]])","v":{"v":0,"d":"R$ 0.00"}}]
[null,null,"Outros",{"$nulls":12},{"$f":"SUM(Diversos[[#This Row],[Janeiro]:[Dezembro]])","v":{"v":0,"d":"R$ 0.00"}}]
[null,null,"Total",{"$f":"SUBTOTAL(109,Diversos[Janeiro])","v":{"v":0,"d":"R$ 0.00"}},{"$f":"SUBTOTAL(109,Diversos[Fevereiro])","v":{"v":0,"d":"R$ 0.00"}},{"$f":"SUBTOTAL(109,Diversos[Março])","v":{"v":0,"d":"R$ 0.00"}},{"$f":"SUBTOTAL(109,Diversos[Abr])","v":{"v":0,"d":"R$ 0.00"}},{"$f":"SUBTOTAL(109,Diversos[Maio])","v":{"v":0,"d":"R$ 0.00"}},{"$f":"SUBTOTAL(109,Diversos[Jun])","v":{"v":0,"d":"R$ 0.00"}},{"$f":"SUBTOTAL(109,Diversos[Julho])","v":{"v":0,"d":"R$ 0.00"}},{"$f":"SUBTOTAL(109,Diversos[Agosto])","v":{"v":0,"d":"R$ 0.00"}},{"$f":"SUBTOTAL(109,Diversos[Setembro])","v":{"v":0,"d":"R$ 0.00"}},{"$f":"SUBTOTAL(109,Diversos[Outubro])","v":{"v":0,"d":"R$ 0.00"}},{"$f":"SUBTOTAL(109,Diversos[Novembro])","v":{"v":0,"d":"R$ 0.00"}},{"$f":"SUBTOTAL(109,Diversos[Dezembro])","v":{"v":0,"d":"R$ 0.00"}},{"$f":"SUBTOTAL(109,Diversos[Ano])","v":{"v":0,"d":"R$ 0.00"}}]
[]
["Os totais são calculados automaticamente na tabela, começando na célula C105. As despesas totais e a sobra e falta no orçamento são calculadas automaticamente para cada mês e ano inteiro, e os minigráficos são atualizados.",null,"TOTAIS","JAN","FEV","MAR","ABR","MAIO","JUN","JUL","AGO","SET","OUT","NOV","DEZ","ANO","MINIGRÁFICO"]
[null,null,"Despesas totais",{"$f":"SUM(Diversos[[#Totals],[Janeiro]],Financeiro[[#Totals],[Janeiro]],Pessoais[[#Totals],[Janeiro]],MensalidadesEAssinaturas[[#Totals],[Janeiro]],Lazer[[#Totals],[Janeiro]],Férias[[#Totals],[Janeiro]],Saúde[[#Totals],[Janeiro]],Entretenimento[[#Totals],[Janeiro]],Transporte[[#Totals],[Janeiro]],Diárias[[#Totals],[Janeiro]],Domésticas[[#Totals],[Janeiro]])","v":{"v":2687,"d":"R$ 2,687.00"}},{"$f":"SUM(Diversos[[#Totals],[Fevereiro]],Financeiro[[#Totals],[Fevereiro]],Pessoais[[#Totals],[Fevereiro]],MensalidadesEAssinaturas[[#Totals],[Fevereiro]],Lazer[[#Totals],[Fevereiro]],Férias[[#Totals],[Fevereiro]],Saúde[[#Totals],[Fevereiro]],Entretenimento[[#Totals],[Fevereiro]],Transporte[[#Totals],[Fevereiro]],Diárias[[#Totals],[Fevereiro]],Domésticas[[#Totals],[Fevereiro]])","v":{"v":3429,"d":"R$ 3,429.00"}},{"$f":"SUM(Diversos[[#Totals],[Março]],Financeiro[[#Totals],[Março]],Pessoais[[#Totals],[Março]],MensalidadesEAssinaturas[[#Totals],[Março]],Lazer[[#Totals],[Março]],Férias[[#Totals],[Março]],Saúde[[#Totals],[Março]],Entretenimento[[#Totals],[Março]],Transporte[[#Totals],[Março]],Diárias[[#Totals],[Março]],Domésticas[[#Totals],[Março]])","v":{"v":2718,"d":"R$ 2,718.00"}},{"$f":"SUM(Diversos[[#Totals],[Abr]],Financeiro[[#Totals],[Abr]],Pessoais[[#Totals],[Abr]],MensalidadesEAssinaturas[[#Totals],[Abr]],Lazer[[#Totals],[Abr]],Férias[[#Totals],[Abr]],Saúde[[#Totals],[Abr]],Entretenimento[[#Totals],[Abr]],Transporte[[#Totals],[Abr]],Diárias[[#Totals],[Abr]],Domésticas[[#Totals],[Abr]])","v":{"v":0,"d":"R$ 0.00"}},{"$f":"SUM(Diversos[[#Totals],[Maio]],Financeiro[[#Totals],[Mai]],Pessoais[[#Totals],[Mai]],MensalidadesEAssinaturas[[#Totals],[Mai]],Lazer[[#Totals],[Mai]],Férias[[#Totals],[Mai]],Saúde[[#Totals],[Mai]],Entretenimento[[#Totals],[Mai]],Transporte[[#Totals],[Mai]],Diárias[[#Totals],[Mai]],Domésticas[[#Totals],[Mai]])","v":{"v":0,"d":"R$ 0.00"}},{"$f":"SUM(Diversos[[#Totals],[Jun]],Financeiro[[#Totals],[Jun]],Pessoais[[#Totals],[Jun]],MensalidadesEAssinaturas[[#Totals],[Jun]],Lazer[[#Totals],[Jun]],Férias[[#Totals],[Jun]],Saúde[[#Totals],[Jun]],Entretenimento[[#Totals],[Jun]],Transporte[[#Totals],[Jun]],Diárias[[#Totals],[Jun]],Domésticas[[#Totals],[Jun]])","v":{"v":0,"d":"R$ 0.00"}},{"$f":"SUM(Diversos[[#Totals],[Julho]],Financeiro[[#Totals],[Julho]],Pessoais[[#Totals],[Julho]],MensalidadesEAssinaturas[[#Totals],[Julho]],Lazer[[#Totals],[Julho]],Férias[[#Totals],[Julho]],Saúde[[#Totals],[Julho]],Entretenimento[[#Totals],[Julho]],Transporte[[#Totals],[Julho]],Diárias[[#Totals],[Julho]],Domésticas[[#Totals],[Julho]])","v":{"v":0,"d":"R$ 0.00"}},{"$f":"SUM(Diversos[[#Totals],[Agosto]],Financeiro[[#Totals],[Agosto]],Pessoais[[#Totals],[Agosto]],MensalidadesEAssinaturas[[#Totals],[Agosto]],Lazer[[#Totals],[Agosto]],Férias[[#Totals],[Agosto]],Saúde[[#Totals],[Agosto]],Entretenimento[[#Totals],[Agosto]],Transporte[[#Totals],[Agosto]],Diárias[[#Totals],[Agosto]],Domésticas[[#Totals],[Agosto]])","v":{"v":0,"d":"R$ 0.00"}},{"$f":"SUM(Diversos[[#Totals],[Setembro]],Financeiro[[#Totals],[Setembro]],Pessoais[[#Totals],[Setembro]],MensalidadesEAssinaturas[[#Totals],[Setembro]],Lazer[[#Totals],[Setembro]],Férias[[#Totals],[Setembro]],Saúde[[#Totals],[Setembro]],Entretenimento[[#Totals],[Setembro]],Transporte[[#Totals],[Setembro]],Diárias[[#Totals],[Setembro]],Domésticas[[#Totals],[Setembro]])","v":{"v":0,"d":"R$ 0.00"}},{"$f":"SUM(Diversos[[#Totals],[Outubro]],Financeiro[[#Totals],[Outubro]],Pessoais[[#Totals],[Outubro]],MensalidadesEAssinaturas[[#Totals],[Outubro]],Lazer[[#Totals],[Outubro]],Férias[[#Totals],[Outubro]],Saúde[[#Totals],[Outubro]],Entretenimento[[#Totals],[Outubro]],Transporte[[#Totals],[Outubro]],Diárias[[#Totals],[Outubro]],Domésticas[[#Totals],[Outubro]])","v":{"v":0,"d":"R$ 0.00"}},{"$f":"SUM(Diversos[[#Totals],[Novembro]],Financeiro[[#Totals],[Novembro]],Pessoais[[#Totals],[Novembro]],MensalidadesEAssinaturas[[#Totals],[Novembro]],Lazer[[#Totals],[Novembro]],Férias[[#Totals],[Novembro]],Saúde[[#Totals],[Novembro]],Entretenimento[[#Totals],[Novembro]],Transporte[[#Totals],[Novembro]],Diárias[[#Totals],[Novembro]],Domésticas[[#Totals],[Novembro]])","v":{"v":0,"d":"R$ 0.00"}},{"$f":"SUM(Diversos[[#Totals],[Dezembro]],Financeiro[[#Totals],[Dezembro]],Pessoais[[#Totals],[Dezembro]],MensalidadesEAssinaturas[[#Totals],[Dezembro]],Lazer[[#Totals],[Dezembro]],Férias[[#Totals],[Dezembro]],Saúde[[#Totals],[Dezembro]],Entretenimento[[#Totals],[Dezembro]],Transporte[[#Totals],[Dezembro]],Diárias[[#Totals],[Dezembro]],Domésticas[[#Totals],[Dezembro]])","v":{"v":0,"d":"R$ 0.00"}},{"$f":"SUM(Diversos[[#Totals],[Ano]],Financeiro[[#Totals],[Ano]],Pessoais[[#Totals],[Ano]],MensalidadesEAssinaturas[[#Totals],[Ano]],Lazer[[#Totals],[Ano]],Férias[[#Totals],[Ano]],Saúde[[#Totals],[Ano]],Entretenimento[[#Totals],[Ano]],Transporte[[#Totals],[Ano]],Diárias[[#Totals],[Ano]],Domésticas[[#Totals],[Ano]])","v":{"v":8834,"d":"R$ 8,834.00"}}]
[null,null,"Diferença de caixa",{"$f":"Receita[[#Totals],[Janeiro]]-D106","v":{"v":1036,"d":"R$ 1,036.00"}},{"$f":"Receita[[#Totals],[Fevereiro]]-E106","v":{"v":127,"d":"R$ 127.00"}},{"$f":"Receita[[#Totals],[Março]]-F106","v":{"v":926,"d":"R$ 926.00"}},{"$f":"Receita[[#Totals],[Abr]]-G106","v":{"v":0,"d":"R$ 0.00"}},{"$f":"Receita[[#Totals],[Maio]]-H106","v":{"v":0,"d":"R$ 0.00"}},{"$f":"Receita[[#Totals],[Jun]]-I106","v":{"v":0,"d":"R$ 0.00"}},{"$f":"Receita[[#Totals],[Julho]]-J106","v":{"v":0,"d":"R$ 0.00"}},{"$f":"Receita[[#Totals],[Agosto]]-K106","v":{"v":0,"d":"R$ 0.00"}},{"$f":"Receita[[#Totals],[Setembro]]-L106","v":{"v":0,"d":"R$ 0.00"}},{"$f":"Receita[[#Totals],[Outubro]]-M106","v":{"v":0,"d":"R$ 0.00"}},{"$f":"Receita[[#Totals],[Novembro]]-N106","v":{"v":0,"d":"R$ 0.00"}},{"$f":"Receita[[#Totals],[Dezembro]]-O106","v":{"v":0,"d":"R$ 0.00"}},{"$f":"Receita[[#Totals],[Ano]]-P106","v":{"v":2089,"d":"R$ 2,089.00"}}]